bitfinex/quotes_SOLUSD_20251130
["timestamp","ask_amount","ask_price","bid_price","bid_amount"]
[1764530388154,13.82677207,138.42,138.41,0.2]
[1764530390154,14.54677207,138.42,138.41,0.2]
[1764530390749,13.82677207,138.42,138.41,0.2]
[1764530391755,14.54677207,138.42,138.41,0.2]
[1764530393251,13.82677207,138.42,138.41,0.2]
[1764530393438,14.54677207,138.42,138.41,0.2]
[1764530393948,13.82677207,138.42,138.41,0.2]
[1764530396143,14.54677207,138.42,138.41,0.2]
[1764530397855,13.82677207,138.42,138.41,0.2]
[1764530398640,14.54677207,138.42,138.41,0.2]
[1764530399863,10.40438953,138.42,138.41,0.89]
[1764530400048,3.18,138.42,138.41,0.89]
[1764530401365,10.40438953,138.42,138.41,0.89]
[1764530403740,10.40438953,138.42,138.41,0.2]
[1764530404770,10.40438953,138.42,138.41,0.89]
[1764530408968,13.82677207,138.42,138.41,0.89]
[1764530410271,14.54677207,138.42,138.41,0.2]
[1764530425777,13.82677207,138.42,138.41,0.2]
[1764530425977,10.40438953,138.42,138.41,0.86]
[1764530427370,13.29843142,138.42,138.41,0.86]
[1764530431064,15.48950751,138.42,138.41,0.86]
[1764530431382,10.11843142,138.42,138.41,0.86]
[1764530434170,2.89404189,138.42,138.41,0.86]
[1764530434673,10.40403439,138.43,138.41,0.86]
[1764530434879,10.40403439,138.43,138.42,0.66]
[1764530435066,17.82993631,138.43,138.42,0.66]
[1764530435463,20.0210124,138.43,138.41,0.2]
[1764530435663,20.7210124,138.43,138.41,0.2]
[1764530435966,2.89383251,138.42,138.41,0.86]
[1764530436373,10.11822204,138.42,138.41,0.86]
[1764530439395,10.40402044,138.43,138.41,0.86]
[1764530439572,13.29785295,138.43,138.41,0.86]
[1764530440593,10.40402044,138.43,138.41,0.86]
[1764530440793,10.11822204,138.42,138.41,0.86]
[1764530454198,10.11822204,138.42,138.41,0.2]
[1764530454401,10.11822204,138.42,138.41,0.86]
[1764530455001,10.11822204,138.42,138.41,0.2]
[1764530455185,2.89383251,138.42,138.41,0.86]
[1764530455903,7.22230247,138.46,138.41,10.27598758]
[1764530456084,7.22230247,138.46,138.42,2.91107609]
[1764530456085,3.18,138.45,138.42,2.91107609]
[1764530456402,3.18,138.45,138.43,0.72]
[1764530456992,10.40287015,138.45,138.43,0.72]
[1764530458896,3.18,138.45,138.43,0.72]
[1764530460485,7.22188306,138.47,138.44,2.19107609]
[1764530460806,17.34703521,138.47,138.44,2.19107609]
[1764530461100,17.34703521,138.47,138.44,2.91107609]
[1764530463805,16.63703521,138.47,138.41,96.07044499]
[1764530463990,2.19107609,138.45,138.41,8.14472371]
[1764530464304,0.71,138.44,138.41,0.2]
[1764530464504,2.90107609,138.44,138.41,0.2]
[1764530464685,16.508864,138.43,138.41,0.2]
[1764530464885,17.218864,138.43,138.41,0.2]
[1764530465408,24.44293698,138.43,138.41,0.2]
[1764530467507,23.73293698,138.43,138.41,0.2]
[1764530467698,0.71,138.42,138.41,0.2]
[1764530471424,7.93438953,138.42,138.41,0.2]
[1764530471624,13.30546562,138.42,138.41,0.2]
[1764530471791,16.19971691,138.42,138.41,0.2]
[1764530484245,16.19971691,138.42,138.41,0.2]
[1764530490342,14.00864082,138.42,138.41,0.2]
[1764530490524,17.43333722,138.42,138.41,0.2]
[1764530505127,26.52760528,138.42,138.41,1e-08]
[1764530505338,17.71766036,138.42,138.41,1e-08]
[1764530515539,35.7786342,138.42,138.34,3.4246964]
[1764530515838,3.4246964,138.39,138.34,3.4246964]
[1764530516536,7.22647781,138.38,138.34,10.65325582]
[1764530519260,7.22647781,138.38,138.33,7.22908985]
[1764530519558,7.22647781,138.38,138.34,3.4246964]
[1764530521062,7.22647781,138.38,138.34,10.65318201]
[1764530522158,7.22647781,138.38,138.34,7.22848561]
[1764530522362,7.22647781,138.38,138.32,29.63277849]
[1764530522363,3.4246964,138.35,138.32,29.63277849]
[1764530522554,3.4246964,138.33,138.28,6.09436466]
[1764530522878,3.18,138.34,138.28,7.23170378]
[1764530523036,3.4246964,138.33,138.28,10.65640018]
[1764530523365,3.4246964,138.32,138.28,7.23170378]
[1764530524145,3.4246964,138.32,138.28,10.65640018]
[1764530524348,3.4246964,138.32,138.28,7.23170378]
[1764530524673,10.65406495,138.33,138.28,10.65640018]
[1764530525251,3.4246964,138.32,138.28,7.23170378]
[1764530526353,10.65406495,138.33,138.28,10.65640018]
[1764530527376,7.22856729,138.34,138.28,10.65640018]
[1764530527557,3.4246964,138.33,138.28,10.65640018]
[1764530527870,3.4246964,138.33,138.28,72.15640018]
[1764530528165,10.65326369,138.34,138.29,3.4246964]
[1764530528339,7.22856729,138.34,138.29,3.4246964]
[1764530528663,7.22856729,138.34,138.31,3.4246964]
[1764530531574,7.22856729,138.34,138.31,10.65482578]
[1764530532070,10.40823852,138.35,138.31,10.65482578]
[1764530533167,11.06823852,138.35,138.31,10.65482578]
[1764530534866,10.40823852,138.35,138.31,10.65482578]
[1764530535778,10.40823852,138.35,138.32,3.4246964]
[1764530535961,25.95655362,138.37,138.33,3.4246964]
[1764530535962,3.4246964,138.37,138.33,3.4246964]
[1764530536168,3.18,138.38,138.34,3.4246964]
[1764530536770,10.40663101,138.38,138.34,3.4246964]
[1764530537186,13.83132741,138.38,138.34,3.4246964]
[1764530537378,0.66,138.37,138.34,3.4246964]
[1764530537885,7.88704722,138.37,138.34,3.4246964]
[1764530540470,7.22704722,138.37,138.34,3.4246964]
[1764530547976,7.22704722,138.37,138.34,3.6046964]
[1764530548178,7.92704722,138.37,138.34,3.4246964]
[1764530548794,15.15600185,138.37,138.34,3.4246964]
[1764530550588,15.15600185,138.37,138.34,2.19229646]
[1764530551190,7.92704722,138.37,138.34,2.19229646]
[1764530551486,17.63560126,138.38,138.34,9.60084596]
[1764530551676,18.33560126,138.38,138.34,9.60084596]
[1764530553090,2.89229646,138.37,138.33,61.5]
[1764530553399,20.52789772,138.37,138.33,61.5]
[1764530553579,0.7,138.36,138.33,63.69229646]
[1764530554173,0.7,138.36,138.33,70.92133046]
[1764530554493,0.7,138.36,138.33,68.729034]
[1764530554693,0.7,138.36,138.33,7.229034]
[1764530555194,0.7,138.36,138.32,80.18116046]
[1764530555195,10.11996125,138.36,138.32,77.808864]
[1764530555370,2.19229646,138.35,138.32,61.5]
[1764530555571,2.89229646,138.35,138.32,61.5]
[1764530555770,0.7,138.34,138.32,61.5]
[1764530556089,0.7,138.34,138.3,101.25713917]
[1764530556394,0.7,138.34,138.3,21.68116046]
[1764530556586,7.92864813,138.34,138.3,28.91160443]
[1764530556988,0.7,138.33,138.3,28.91160443]
[1764530557488,0.7,138.33,138.3,23.53930797]
[1764530560071,0.7,138.33,138.3,25.73160443]
[1764530560577,0.7,138.33,138.3,87.23160443]
[1764530566385,0.7,138.33,138.3,87.41160443]
[1764530566698,0.7,138.34,138.3,87.41160443]
[1764530567200,0.7,138.34,138.3,87.23160443]
[1764530570201,0.7,138.34,138.3,87.41160443]
[1764530570402,0.7,138.34,138.31,9.42222127]
[1764530573597,7.22824321,138.35,138.31,9.42222127]
[1764530573793,18.06880601,138.36,138.34,2.19229646]
[1764530573794,21.71631257,138.36,138.34,2.19229646]
[1764530573983,0.7,138.42,138.35,2.37229646]
[1764530574184,22.4068847,138.42,138.38,2.19229646]
[1764530574392,22.4068847,138.42,138.39,2.19229646]
[1764530575001,0.7,138.42,138.4,2.19229646]
[1764530575310,0.7,138.43,138.4,2.19229646]
[1764530575695,0.7,138.43,138.4,9.41757991]
[1764530578115,0.7,138.43,138.4,9.59757991]
[1764530579240,0.7,138.43,138.4,9.41757991]
[1764530580515,10.11629883,138.43,138.38,21.68116046]
[1764530580696,2.19229646,138.42,138.38,21.68116046]
[1764530580891,2.19229646,138.42,138.34,18.24602964]
[1764530580892,2.19229646,138.39,138.34,20.4383261]
[1764530581209,2.19229646,138.39,138.34,2.19229646]
[1764530581510,0.66,138.38,138.35,7.22762599]
[1764530590620,10.07881366,138.38,138.34,61.5]
[1764530590803,2.19229646,138.37,138.34,61.5]
[1764530591122,20.91674577,138.37,138.34,61.5]
[1764530591318,0.66,138.36,138.34,61.5]
[1764530591620,0.66,138.36,138.32,9.42155454]
[1764530591621,0.66,138.36,138.32,71.10155454]
[1764530592226,0.66,138.36,138.33,2.37229646]
[1764530594432,0.66,138.36,138.33,9.60130543]
[1764530595617,0.66,138.36,138.33,2.37229646]
[1764530595817,0.66,138.36,138.33,9.6012872]
[1764530600017,0.66,138.36,138.33,9.4212872]
[1764530602538,0.66,138.36,138.33,7.40899074]
[1764530602834,0.66,138.36,138.33,7.22899074]
[1764530604126,0.66,138.36,138.33,10.40899074]
[1764530609028,7.22665878,138.38,138.34,2.19229646]
[1764530609257,0.71,138.39,138.35,2.19229646]
[1764530609414,23.4355321,138.41,138.35,67.05229646]
[1764530609415,0.71,138.38,138.35,67.05229646]
[1764530609738,0.71,138.38,138.35,66.87229646]
[1764530610237,0.71,138.38,138.35,74.09992433]
[1764530612434,0.71,138.38,138.35,75.33223717]
[1764530613317,3.4246093,138.37,138.32,0.18]
[1764530613640,3.4246093,138.37,138.32,23.0934733]
[1764530613840,0.71,138.36,138.32,23.0934733]
[1764530614033,0.71,138.36,138.33,3.4246093]
[1764530615228,7.22804481,138.35,138.32,23.0934733]
[1764530616428,7.93804481,138.35,138.32,23.0934733]
[1764530617629,0.71,138.34,138.32,19.7334733]
[1764530617833,0.71,138.34,138.32,22.9134733]
[1764530618144,0.71,138.34,138.32,19.488864]
[1764530619122,7.93804481,138.35,138.32,19.488864]
[1764530620541,0.71,138.34,138.32,19.488864]
[1764530621352,0.71,138.34,138.32,16.308864]
[1764530622050,7.93864238,138.34,138.32,16.308864]
[1764530622946,7.93864238,138.34,138.32,77.808864]
[1764530625754,0.71,138.33,138.32,61.5]
[1764530627046,7.22908985,138.33,138.32,61.5]
[1764530627848,7.22856729,138.34,138.32,61.5]
[1764530628151,0.71,138.33,138.32,61.5]
[1764530628854,7.93930582,138.33,138.3,73.66994492]
[1764530629857,7.22930582,138.33,138.3,73.66994492]
[1764530630233,7.93930582,138.33,138.3,64.86]
[1764530630551,0.71,138.32,138.29,61.5]
[1764530630751,0.71,138.32,138.3,3.18]
[1764530631643,7.2301352,138.31,138.3,3.18]
[1764530631843,7.9401352,138.31,138.3,3.18]
[1764530632741,7.2301352,138.31,138.3,3.18]
[1764530634049,7.2301352,138.31,138.29,61.5]
[1764530634257,7.2301352,138.31,138.29,64.68]
[1764530634958,0.71,138.31,138.29,64.68]
[1764530635861,7.94023463,138.31,138.29,64.68]
[1764530636556,7.23023463,138.31,138.29,64.68]
[1764530636763,0.67,138.3,138.29,64.68]
[1764530637761,7.90065798,138.3,138.29,64.68]
[1764530638868,25.97730295,138.3,138.27,0.2]
[1764530639068,0.67,138.32,138.27,3.8046093]
[1764530639359,3.4246093,138.28,138.27,0.2]
[1764530639536,6.6046093,138.28,138.27,0.2]
[1764530639737,14.50631308,138.28,138.27,0.2]
[1764530639957,14.50631308,138.28,138.27,1e-08]
[1764530640160,32.58557255,138.28,138.2,0.38]
[1764530640339,3.4246093,138.25,138.21,16.308864]
[1764530640541,25.31096325,138.28,138.22,16.308864]
[1764530640859,3.4246093,138.26,138.22,16.308864]
[1764530641361,0.67,138.25,138.22,16.308864]
[1764530641862,7.23379629,138.24,138.22,16.308864]
[1764530644860,0.67,138.27,138.23,9.27426806]
[1764530645066,11.32699373,138.27,138.23,9.27426806]
[1764530645367,4.0946093,138.29,138.24,0.18]
[1764530645573,11.326248,138.29,138.24,0.18]
[1764530645742,3.4246093,138.28,138.24,0.18]
[1764530645941,3.4246093,138.28,138.25,9.09426806]
[1764530646361,3.4246093,138.28,138.25,9.27426806]
[1764530647168,10.65632504,138.28,138.25,9.27426806]
[1764530648366,10.65632504,138.28,138.25,12.45426806]
[1764530652366,3.4246093,138.27,138.25,12.45426806]
[1764530657867,11.32632504,138.28,138.25,12.45426806]
[1764530659476,0.67,138.27,138.22,16.488864]
[1764530659772,3.4246093,138.23,138.22,16.308864]
[1764530660570,11.32892891,138.23,138.2,9.00994492]
[1764530660783,4.0946093,138.22,138.2,0.2]
[1764530660952,3.4246093,138.21,138.2,0.2]
[1764530661153,4.0946093,138.22,138.2,0.2]
[1764530662067,4.0946093,138.21,138.2,0.2]
[1764530665977,11.32997577,138.21,138.2,0.2]
[1764530669579,3.4246093,138.21,138.2,0.2]
[1764530669874,4.0946093,138.21,138.2,0.2]
[1764530670779,11.32997577,138.21,138.2,0.2]
[1764530672482,10.10347634,138.21,138.2,0.2]
[1764530680691,7.90536647,138.21,138.2,0.2]
[1764530680875,9.43347634,138.21,138.2,0.2]
[1764530684996,7.23469788,138.23,138.2,9.18994492]
[1764530685298,2.19810987,138.21,138.2,9.29426806]
[1764530685502,23.46220308,138.25,138.2,9.47426806]
[1764530685503,2.19810987,138.22,138.2,9.47426806]
[1764530685678,2.19810987,138.22,138.2,16.71006022]
[1764530687396,2.19810987,138.22,138.2,16.53006022]
[1764530687894,2.19810987,138.22,138.2,16.71006022]
[1764530688890,2.19810987,138.22,138.2,16.53006022]
[1764530689886,2.19810987,138.22,138.2,16.71006022]
[1764530694204,2.19810987,138.22,138.2,78.21006022]
[1764530697682,2.85810987,138.21,138.2,0.2]
[1764530699407,2.19810987,138.21,138.2,0.2]
[1764530702622,0.66,138.24,138.21,7.23536647]
[1764530702911,2.19810987,138.23,138.21,7.23536647]
[1764530703411,2.85810987,138.23,138.21,7.23536647]
[1764530703986,2.85810987,138.24,138.21,7.41536647]
[1764530704711,2.85810987,138.24,138.21,7.23536647]
[1764530705483,7.23274989,138.26,138.22,9.09426806]
[1764530705715,2.85810987,138.25,138.23,7.23431961]
[1764530706093,0.66,138.24,138.23,7.23431961]
[1764530706293,2.85810987,138.24,138.23,7.23431961]
[1764530706933,2.19810987,138.24,138.23,7.23431961]
[1764530708734,2.19810987,138.25,138.23,7.23431961]
[1764530708913,2.19810987,138.25,138.23,16.04426453]
[1764530709229,0.66,138.25,138.23,16.04426453]
[1764530711235,0.66,138.27,138.24,9.09426806]
[1764530711455,2.85810987,138.27,138.24,9.27426806]
[1764530712839,0.66,138.27,138.25,7.23327305]
[1764530713534,2.85810987,138.27,138.24,16.3279172]
[1764530713931,0.66,138.26,138.24,16.3279172]
[1764530716641,2.85810987,138.27,138.24,16.3279172]
[1764530717347,0.66,138.26,138.24,16.3279172]
[1764530719149,2.85810987,138.26,138.24,9.09426806]
[1764530719443,29.7129846,138.25,138.2,9.00994492]
[1764530719636,2.19810987,138.21,138.2,0.2]
[1764530720045,2.85810987,138.21,138.2,0.2]
[1764530727051,10.09347634,138.21,138.2,0.2]
[1764530731863,12.99192204,138.21,138.2,0.2]
[1764530734572,14.22963237,138.21,138.2,0.2]
[1764530738876,11.33118667,138.21,138.2,0.2]
[1764530739388,14.51118667,138.21,138.2,0.2]
[1764530747296,10.67118667,138.21,138.2,0.2]
[1764530750217,3.4358202,138.21,138.2,0.2]
[1764530751200,18.08363522,138.25,138.2,0.38]
[1764530751401,3.4358202,138.23,138.2,0.38]
[1764530752621,3.4358202,138.22,138.2,0.2]
[1764530753191,3.4358202,138.21,138.2,0.2]
[1764530754208,3.4358202,138.22,138.2,0.2]
[1764530755633,3.4358202,138.22,138.2,7.43586252]
[1764530756620,3.4358202,138.22,138.2,68.93586252]
[1764530759520,3.4358202,138.22,138.2,61.7]
[1764530759822,4.1258202,138.22,138.2,61.7]
[1764530760817,3.4358202,138.22,138.2,0.2]
[1764530761119,4.1258202,138.22,138.2,0.2]
[1764530772516,3.4358202,138.22,138.2,0.2]
[1764530772734,4.1258202,138.22,138.2,0.2]
[1764530773053,4.1258202,138.21,138.2,0.2]
[1764530775523,7.92536647,138.21,138.2,0.2]
[1764530775834,4.1258202,138.21,138.2,0.2]
[1764530779139,11.36118667,138.21,138.2,0.2]
[1764530789459,14.25963237,138.21,138.2,0.2]
[1764530794065,17.43963237,138.21,138.2,0.2]
[1764530796372,16.2024101,138.21,138.2,0.2]
[1764530797772,16.2024101,138.21,138.19,0.2]
[1764530798074,2.86859793,138.2,138.19,0.2]
[1764530798252,2.86859793,138.2,138.18,0.2]
[1764530798253,5.06719586,138.2,138.18,0.2]
[1764530798444,8.24719586,138.19,138.14,0.2]
[1764530798649,2.19859793,138.15,138.14,0.2]
[1764530799065,5.76809414,138.15,138.14,0.2]
[1764530799748,13.006603,138.15,138.14,0.2]
[1764530801149,10.13800507,138.15,138.14,0.2]
[1764530801364,13.006603,138.15,138.14,0.2]
[1764530805083,13.98800507,138.15,138.14,0.2]
[1764530805292,16.186603,138.15,138.14,0.2]
[1764530807888,15.516603,138.15,138.14,0.2]
[1764530808473,16.186603,138.15,138.14,0.2]
[1764530809684,15.516603,138.15,138.14,0.2]
[1764530809863,16.186603,138.15,138.14,0.2]
[1764530821593,15.516603,138.15,138.14,0.2]
[1764530821801,10.13800507,138.15,138.14,0.58]
[1764530822186,10.13800507,138.15,138.14,0.2]
[1764530822485,12.336603,138.15,138.14,0.58]
[1764530822692,10.13800507,138.15,138.14,0.58]
[1764530823498,2.89949621,138.15,138.14,0.58]
[1764530823676,2.19859793,138.16,138.14,0.58]
[1764530823877,9.72264121,138.16,138.14,0.58]
[1764530824188,9.72264121,138.16,138.14,0.2]
[1764530824402,9.72264121,138.16,138.14,0.58]
[1764530824770,16.96070475,138.16,138.14,0.58]
[1764530824994,16.96070475,138.16,138.14,0.2]
[1764530825899,2.19859793,138.15,138.14,0.2]
[1764530826921,14.76210682,138.16,138.14,0.58]
[1764530827194,2.19859793,138.15,138.14,0.2]
[1764530828679,2.19859793,138.15,138.14,0.58]
[1764530828994,9.43666147,138.16,138.14,0.58]
[1764530829494,2.19859793,138.15,138.14,0.58]
[1764530829684,2.19859793,138.15,138.14,0.2]
[1764530831009,17.66070475,138.16,138.14,0.2]
[1764530831302,2.19859793,138.15,138.14,0.2]
[1764530834209,10.13666147,138.16,138.14,0.2]
[1764530837308,2.19859793,138.15,138.14,0.2]
[1764530840019,7.93806354,138.16,138.14,0.58]
[1764530840203,0.7,138.18,138.14,0.58]
[1764530840204,7.23703531,138.18,138.14,26.61044233]
[1764530840517,23.11316239,138.18,138.15,0.38]
[1764530840814,7.23703531,138.18,138.15,0.38]
[1764530841404,9.43563324,138.18,138.14,26.92752126]
[1764530841599,2.89859793,138.17,138.14,27.30752126]
[1764530842204,2.89859793,138.17,138.14,24.12752126]
[1764530845599,2.89859793,138.17,138.14,85.62752126]
[1764530846623,0.7,138.17,138.14,87.82611919]
[1764530846799,10.10563324,138.18,138.15,0.38]
[1764530847123,7.90703531,138.18,138.15,0.38]
[1764530847495,0.67,138.18,138.15,0.38]
[1764530848113,7.90663256,138.19,138.16,2.19859793]
[1764530848611,0.67,138.19,138.16,9.81649077]
[1764530848811,31.84303467,138.2,138.16,9.43649077]
[1764530849016,31.84303467,138.2,138.17,0.38]
[1764530849217,7.90609393,138.2,138.17,0.38]
[1764530849606,0.67,138.2,138.17,0.38]
[1764530852002,0.67,138.2,138.16,9.81649077]
[1764530852417,10.10461967,138.2,138.16,9.81649077]
[1764530852921,0.67,138.19,138.16,9.81649077]
[1764530854626,0.67,138.19,138.16,71.31649077]
[1764530856228,0.67,138.19,138.17,2.19859793]
[1764530858639,17.34206527,138.21,138.18,3.43393405]
[1764530858803,16.67206527,138.21,138.18,3.43393405]
[1764530859005,0.67,138.2,138.18,3.43393405]
[1764530860530,0.67,138.2,138.18,64.93393405]
[1764530862715,4.10393405,138.2,138.18,61.5]
[1764530863139,0.67,138.19,138.18,61.5]
[1764530864011,0.67,138.19,138.16,11.0518404]
[1764530864730,0.67,138.19,138.16,10.6718404]
[1764530864934,0.67,138.19,138.15,21.93986897]
[1764530864935,3.43393405,138.17,138.14,86.81880892]
[1764530865133,0.67,138.16,138.14,25.31880892]
[1764530865332,0.67,138.16,138.14,9.00994492]
[1764530865642,0.67,138.16,138.14,12.44387897]
[1764530865817,24.77295115,138.18,138.14,12.44387897]
[1764530866139,0.67,138.17,138.14,12.82387897]
[1764530866315,0.67,138.17,138.14,20.06280921]
[1764530867741,0.67,138.17,138.14,16.62887516]
[1764530867742,4.10393405,138.17,138.14,16.62887516]
[1764530869458,4.10393405,138.17,138.14,78.12887516]
[1764530870053,0.67,138.16,138.14,77.74887516]
[1764530870591,3.43393405,138.15,138.14,0.2]
[1764530870740,32.4186645,138.15,138.14,0.2]
[1764530871058,33.0886645,138.15,138.14,0.2]
[1764530871854,29.65473045,138.15,138.14,0.2]
[1764530873761,33.0886645,138.15,138.14,0.2]
[1764530876766,29.65473045,138.15,138.14,0.2]
[1764530880548,33.0886645,138.15,138.14,0.2]
[1764530881069,36.2686645,138.15,138.14,0.2]
[1764530882570,32.83473045,138.15,138.14,0.2]
[1764530882769,7.23850886,138.15,138.14,0.2]
[1764530883559,7.23850886,138.15,138.14,3.63393405]
[1764530883946,7.23850886,138.15,138.14,0.2]
[1764530884974,7.23850886,138.15,138.14,3.63393405]
[1764530885148,7.23850886,138.15,138.14,0.2]
[1764530887671,11.55214693,138.16,138.14,0.2]
[1764530888747,7.91821288,138.16,138.14,0.2]
[1764530891667,0.68,138.16,138.14,0.2]
[1764530908983,0.7,138.18,138.15,3.43393405]
[1764530910171,22.43991811,138.18,138.15,10.6722648]
[1764530910375,22.43991811,138.18,138.16,3.43393405]
[1764530910575,0.7,138.17,138.16,3.43393405]
[1764530911190,21.73991811,138.18,138.16,3.43393405]
[1764530911392,0.7,138.18,138.16,3.43393405]
[1764530911889,0.7,138.18,138.16,7.237923]
[1764530916872,0.7,138.18,138.16,10.67185705]
[1764530919996,0.7,138.18,138.16,72.17185705]
[1764530920467,0.7,138.18,138.16,70.93608103]
[1764530922970,21.73991811,138.19,138.17,2.19815803]
[1764530923182,22.43991811,138.19,138.17,2.19815803]
[1764530923772,21.73991811,138.19,138.17,2.57815803]
[1764530923973,7.93595483,138.2,138.17,2.57815803]
[1764530924173,29.67272257,138.2,138.17,2.57815803]
[1764530925299,29.67272257,138.2,138.17,9.81560346]
[1764530927305,7.93595483,138.2,138.17,71.31560346]
[1764530927477,29.67272257,138.2,138.17,71.31560346]
[1764530927977,7.93595483,138.2,138.17,71.31560346]
[1764530928709,7.93595483,138.2,138.18,2.19815803]
[1764530930298,21.73676774,138.21,138.18,9.435072]
[1764530930485,0.7,138.2,138.18,9.435072]
[1764530930986,21.73676774,138.21,138.18,9.435072]
[1764530931186,22.43676774,138.21,138.18,9.435072]
[1764530932089,22.43676774,138.21,138.18,9.815072]
[1764530932401,22.43676774,138.21,138.19,2.19815803]
[1764530933593,0.7,138.2,138.18,12.615072]
[1764530934481,0.7,138.2,138.18,10.41691397]
[1764530934890,0.7,138.2,138.18,71.91691397]
[1764530935604,0.7,138.2,138.18,74.11508844]
[1764530942702,0.7,138.2,138.18,71.91693041]
[1764530945693,0.7,138.2,138.18,64.68]
[1764530955318,0.7,138.2,138.18,66.87815803]
[1764530961721,0.7,138.2,138.18,3.18]
[1764530962054,0.7,138.2,138.17,9.81542169]
[1764530962055,16.308864,138.15,138.06,0.79]
[1764530962227,25.10149612,138.11,138.06,0.1]
[1764530962524,2.19815803,138.07,138.06,0.1]
[1764530962695,5.37815803,138.07,138.04,0.1]
[1764530962894,2.19815803,138.05,138.04,0.1]
[1764530963307,2.90815803,138.05,138.04,0.1]
[1764530963525,10.15191029,138.05,138.04,0.1]
[1764530963822,13.05329933,138.05,138.04,0.1]
[1764530966295,9.44191029,138.05,138.04,0.1]
[1764530967326,10.10191029,138.05,138.04,0.1]
[1764530967613,19.29617835,138.05,138.04,0.1]
[1764530967824,21.49433638,138.05,138.04,0.1]
[1764530968006,19.29617835,138.05,138.04,0.1]
[1764530969822,37.405559,138.05,138.0,5.11426806]
[1764530970016,2.19815803,138.02,138.0,5.11426806]
[1764530971812,9.44400416,138.02,138.0,5.11426806]
[1764530978233,7.24584613,138.02,138.0,61.5]
[1764530978442,2.19815803,138.01,138.0,70.30994492]
[1764530978947,9.44400416,138.02,138.0,70.30994492]
[1764530980337,7.24584613,138.02,138.0,70.30994492]
[1764530980542,10.68905938,138.02,138.0,70.30994492]
[1764530981324,7.24584613,138.02,138.01,8.80994492]
[1764530984042,7.24584613,138.02,138.01,70.65426806]
[1764530984257,7.24584613,138.02,138.01,74.09748131]
[1764530984435,7.24584613,138.02,138.01,70.59426806]
[1764530986347,25.35783702,138.03,138.01,70.59426806]
[1764530986643,25.35783702,138.03,138.02,11.98994492]
[1764530990248,18.11303517,138.03,138.02,11.98994492]
[1764530990448,22.21624842,138.03,138.0,12.27426806]
[1764530990654,3.44321325,138.02,138.0,11.98994492]
[1764530990835,3.44321325,138.01,137.95,3.50321325]
[1764530991032,3.44321325,137.99,137.98,25.11880892]
[1764530991236,3.44321325,137.99,137.95,0.06]
[1764530991445,3.44321325,137.99,137.97,8.80994492]
[1764530991446,3.44321325,137.98,137.97,8.80994492]
[1764530992034,3.44321325,137.99,137.97,8.80994492]
[1764530992241,7.24742716,137.98,137.97,8.80994492]
[1764530992419,11.35064041,137.98,137.97,8.80994492]
[1764530993319,7.24742716,137.98,137.97,8.80994492]
[1764530995653,7.96742716,137.98,137.97,8.80994492]
[1764530998726,7.24742716,137.98,137.97,8.80994492]
[1764530999050,7.96742716,137.98,137.97,8.80994492]
[1764531000350,7.96742716,137.98,137.96,3.18]
[1764531000533,11.41064041,137.98,137.96,3.18]
[1764531001430,0.72,137.97,137.96,11.98994492]
[1764531001631,0.72,137.97,137.9,167.84321325]
[1764531001632,7.24847781,137.96,137.9,167.84321325]
[1764531001832,3.44321325,137.95,137.94,16.308864]
[1764531002055,4.16321325,137.95,137.93,8.80994492]
[1764531002355,0.72,137.94,137.93,8.80994492]
[1764531002541,0.72,137.94,137.92,0.28432314]
[1764531002730,0.72,137.94,137.93,25.11880892]
[1764531002938,26.08967235,137.96,137.94,8.80994492]
[1764531003132,29.5328856,137.96,137.94,8.80994492]
[1764531003340,0.72,137.95,137.94,8.80994492]
[1764531003738,7.96900326,137.95,137.94,8.80994492]
[1764531004747,61.60313087,137.98,137.94,8.80994492]
[1764531005041,4.16321325,137.96,137.94,8.80994492]
[1764531005440,0.72,137.95,137.94,8.80994492]
[1764531005761,0.72,137.96,137.94,8.80994492]
[1764531005963,7.24847781,137.96,137.94,8.80994492]
[1764531006162,7.24847781,137.96,137.94,3.78753639]
[1764531006353,7.24847781,137.96,137.95,15.71748131]